bitfinex-derivatives/quotes_BTCF0:USTF0_20251216
["timestamp","ask_amount","ask_price","bid_price","bid_amount"]
[1765918405495,0.00017092,87735.0,87734.0,0.05623]
[1765918405696,0.03006092,87735.0,87734.0,0.05623]
[1765918405897,0.05969092,87735.0,87734.0,0.05623]
[1765918406098,0.06069092,87735.0,87734.0,0.05623]
[1765918407396,0.00117092,87735.0,87734.0,0.05623]
[1765918407997,0.00017092,87735.0,87734.0,0.05623]
[1765918408196,0.00117092,87735.0,87734.0,0.05623]
[1765918408792,0.00017092,87735.0,87734.0,0.05623]
[1765918408991,0.00117092,87735.0,87734.0,0.05623]
[1765918409901,0.00017092,87735.0,87734.0,0.05623]
[1765918410403,0.00017092,87735.0,87734.0,0.05723]
[1765918412496,0.00017092,87735.0,87734.0,0.05623]
[1765918412697,0.00017092,87735.0,87734.0,0.05723]
[1765918413098,0.00017092,87735.0,87734.0,0.05623]
[1765918413403,0.00017092,87735.0,87734.0,0.05723]
[1765918415796,0.07387,87752.0,87751.0,0.0687583]
[1765918416203,0.05504,87750.0,87749.0,0.3608]
[1765918416404,0.0664391,87745.0,87744.0,0.0113991]
[1765918416604,0.0664391,87745.0,87744.0,0.0388291]
[1765918416901,0.0664391,87745.0,87744.0,0.0687591]
[1765918417302,0.05504,87745.0,87744.0,0.0687591]
[1765918417712,0.0664391,87745.0,87744.0,0.05736]
[1765918417904,0.05504,87741.0,87740.0,0.3608]
[1765918418808,0.05504,87741.0,87740.0,0.3721998]
[1765918419799,0.05604,87741.0,87740.0,0.3996298]
[1765918420003,0.05604,87741.0,87740.0,0.4295598]
[1765918420204,0.05704,87741.0,87740.0,0.4295598]
[1765918421616,0.05804,87741.0,87740.0,0.4295598]
[1765918422111,0.0694396,87741.0,87740.0,0.4295598]
[1765918422314,0.0674396,87741.0,87740.0,0.4295598]
[1765918423205,0.05604,87741.0,87740.0,0.4295598]
[1765918423406,0.05704,87741.0,87740.0,0.4295598]
[1765918424704,0.05604,87741.0,87740.0,0.4295598]
[1765918424906,0.05704,87741.0,87740.0,0.4295598]
[1765918425311,0.05604,87741.0,87740.0,0.4295598]
[1765918425512,0.05704,87741.0,87740.0,0.4295598]
[1765918425718,0.05804,87741.0,87740.0,0.4295598]
[1765918426102,0.05804,87741.0,87740.0,0.38823]
[1765918426307,0.05804,87741.0,87740.0,0.41816]
[1765918427213,0.03094,87741.0,87740.0,0.41816]
[1765918427410,0.003,87741.0,87740.0,0.41816]
[1765918428003,0.4272384,87751.0,87750.0,0.05736]
[1765918428217,0.45481255,87751.0,87750.0,0.05736]
[1765918428415,0.08261415,87751.0,87750.0,0.05736]
[1765918429308,0.08361415,87751.0,87750.0,0.05736]
[1765918429818,0.08461415,87751.0,87750.0,0.05736]
[1765918431011,0.08361415,87751.0,87750.0,0.05736]
[1765918432313,0.08461415,87751.0,87750.0,0.05736]
[1765918432903,0.08361415,87751.0,87750.0,0.02743]
[1765918433218,0.0664392,87744.0,87743.0,0.0687593]
[1765918433514,0.05504,87741.0,87740.0,0.3996297]
[1765918433918,0.08263948,87741.0,87740.0,0.3996297]
[1765918434107,0.09403908,87741.0,87740.0,0.3608]
[1765918435216,0.02759948,87741.0,87740.0,0.41816]
[1765918435412,0.001,87744.0,87743.0,0.05736]
[1765918435612,0.001,87744.0,87743.0,0.41816]
[1765918436121,0.00017092,87753.0,87752.0,0.0687582]
[1765918436122,0.05521092,87753.0,87752.0,0.0687582]
[1765918436307,0.08282457,87753.0,87752.0,0.4295582]
[1765918437622,0.02778457,87753.0,87752.0,0.4455182]
[1765918437924,0.00017092,87753.0,87752.0,0.4455182]
[1765918438119,0.00017092,87753.0,87752.0,0.4569624]
[1765918438728,0.00117092,87753.0,87752.0,0.4569624]
[1765918439117,0.0664358,87771.0,87770.0,0.05736]
[1765918439433,0.08263375,87771.0,87770.0,0.05736]
[1765918440318,0.08563375,87771.0,87770.0,0.05836]
[1765918440526,0.08563375,87771.0,87770.0,0.001]
[1765918440922,0.08863375,87771.0,87770.0,0.001]
[1765918441627,0.0664368,87763.0,87762.0,0.00017092]
[1765918441822,0.09403055,87763.0,87762.0,0.00017092]
[1765918442224,0.09403055,87763.0,87736.0,0.0687602]
[1765918442225,0.0664402,87737.0,87736.0,0.0687602]
[1765918442421,0.05504,87737.0,87736.0,0.0687602]
[1765918443619,0.05504,87737.0,87736.0,0.0697602]
[1765918443815,0.0664402,87737.0,87736.0,0.06036]
[1765918444026,0.05504,87737.0,87736.0,0.06036]
[1765918445028,0.05604,87737.0,87736.0,0.05836]
[1765918445219,0.05604,87737.0,87736.0,0.05736]
[1765918445414,0.05804,87737.0,87736.0,0.05736]
[1765918446022,0.05604,87737.0,87736.0,0.05736]
[1765918446317,0.002,87737.0,87736.0,0.07236]
[1765918447732,0.002,87737.0,87736.0,0.07436]
[1765918448234,0.05756,87737.0,87736.0,0.05936]
[1765918448425,0.002,87737.0,87736.0,0.05936]
[1765918448627,0.002,87737.0,87736.0,0.07436]
[1765918449027,0.00017092,87745.0,87736.0,0.07436]
[1765918449028,0.05573092,87745.0,87744.0,0.0687492]
[1765918449224,0.08328486,87745.0,87744.0,0.3608]
[1765918450433,0.02772486,87745.0,87744.0,0.41815]
[1765918450629,0.05526486,87745.0,87744.0,0.41815]
[1765918450936,0.05826486,87745.0,87744.0,0.41815]
[1765918451137,0.08728486,87745.0,87744.0,0.41815]
[1765918452431,0.09868396,87745.0,87744.0,0.41815]
[1765918452734,0.09768396,87745.0,87744.0,0.41815]
[1765918452930,0.09568396,87745.0,87744.0,0.41815]
[1765918453737,0.09668396,87745.0,87744.0,0.41815]
[1765918454035,0.09768396,87745.0,87744.0,0.41815]
[1765918454435,0.09568396,87745.0,87744.0,0.41815]
[1765918454732,0.09768396,87745.0,87744.0,0.41815]
[1765918455337,0.09668396,87745.0,87744.0,0.41815]
[1765918455637,0.08628486,87745.0,87744.0,0.41815]
[1765918456032,0.10226486,87745.0,87744.0,0.41815]
[1765918456339,0.03072486,87745.0,87744.0,0.41815]
[1765918456527,0.00217092,87745.0,87744.0,0.41815]
[1765918457128,0.00317092,87745.0,87744.0,0.41815]
[1765918457738,0.00117092,87745.0,87744.0,0.41815]
[1765918457938,0.00117092,87745.0,87744.0,0.43347]
[1765918458537,0.00017092,87745.0,87744.0,0.43347]
[1765918458734,0.05556,87764.0,87763.0,0.02821]
[1765918458938,0.08310846,87764.0,87763.0,0.02821]
[1765918459825,0.0669577,87756.0,87755.0,0.41832092]
[1765918460137,0.09450335,87756.0,87755.0,0.05752092]
[1765918460923,0.09450335,87756.0,87755.0,0.02838092]
[1765918461329,0.09450335,87756.0,87755.0,0.05752092]
[1765918461524,0.09450335,87756.0,87755.0,0.00017092]
[1765918461948,0.09550335,87756.0,87755.0,0.00017092]
[1765918462834,0.09450335,87756.0,87755.0,0.05752092]
[1765918463031,0.09550335,87756.0,87755.0,0.05752092]
[1765918463632,0.08410565,87756.0,87755.0,0.05752092]
[1765918464432,0.08610565,87756.0,87755.0,0.05752092]
[1765918465340,0.08510565,87756.0,87755.0,0.05752092]
[1765918465541,0.08610565,87756.0,87755.0,0.05752092]
[1765918465727,0.03054565,87756.0,87755.0,0.05752092]
[1765918465926,0.003,87756.0,87755.0,0.05752092]
[1765918468042,0.05573092,87772.0,87771.0,0.05735]
[1765918468236,0.05523142,87772.0,87771.0,0.4295457]
[1765918468438,0.08325142,87772.0,87771.0,0.4295457]
[1765918468740,0.05573092,87772.0,87771.0,0.4295457]
[1765918469639,0.05873092,87772.0,87771.0,0.4295457]
[1765918470137,0.00317092,87772.0,87771.0,0.41815]
[1765918470343,0.06173092,87772.0,87771.0,0.41915]
[1765918471633,0.06173092,87772.0,87771.0,0.05835]
[1765918472934,0.06173092,87772.0,87771.0,0.001]
[1765918473636,0.06173092,87772.0,87771.0,0.02921]
[1765918473839,0.06173092,87772.0,87771.0,0.05835]
[1765918474437,0.06173092,87772.0,87771.0,0.001]
[1765918475646,0.06173092,87772.0,87771.0,0.0281]
[1765918477444,0.06173092,87772.0,87771.0,0.001]
[1765918477747,0.06173092,87772.0,87771.0,0.05892]
[1765918478042,0.06173092,87772.0,87771.0,0.02978]
[1765918478238,0.06173092,87772.0,87771.0,0.05892]
[1765918478646,0.07312652,87772.0,87771.0,0.001]
[1765918478846,0.10062097,87772.0,87771.0,0.001]
[1765918479238,0.06456092,87772.0,87771.0,0.05892]
[1765918479741,0.09201478,87772.0,87771.0,0.001]
[1765918480337,0.09201478,87772.0,87745.0,0.37612]
[1765918480338,0.0697877,87756.0,87745.0,0.3608]
[1765918480547,0.0697899,87739.0,87738.0,0.0693199]
[1765918480738,0.01697,87745.0,87744.0,0.0693192]
[1765918480739,0.0867591,87745.0,87744.0,0.0693192]
[1765918481048,0.07536,87745.0,87744.0,0.0693192]
[1765918481351,0.0697888,87748.0,87747.0,0.0693189]
[1765918481552,0.09725535,87748.0,87747.0,0.0693189]
[1765918481850,0.0697888,87748.0,87747.0,0.0693189]
[1765918483140,0.0707888,87748.0,87747.0,0.0693189]
[1765918483345,0.03042,87748.0,87747.0,0.0693189]
[1765918483545,0.05939,87748.0,87747.0,0.0693189]
[1765918483948,0.05839,87748.0,87747.0,0.0693189]
[1765918484148,0.06039,87748.0,87747.0,0.0693189]
[1765918484750,0.05839,87748.0,87747.0,0.0693189]
[1765918485049,0.06039,87748.0,87747.0,0.0693189]
[1765918486352,0.05939,87748.0,87747.0,0.05792]
[1765918486552,0.08686173,87748.0,87747.0,0.05792]
[1765918487145,0.08586173,87748.0,87747.0,0.05792]
[1765918487347,0.08786173,87748.0,87747.0,0.05792]
[1765918487954,0.05939,87748.0,87747.0,0.05792]
[1765918488143,0.06139,87748.0,87747.0,0.05792]
[1765918489647,0.05939,87748.0,87747.0,0.05792]
[1765918490452,0.05839,87746.0,87745.0,0.0401791]
[1765918490854,0.05839,87746.0,87745.0,0.0693191]
[1765918493356,0.002,87746.0,87745.0,0.0693191]
[1765918493749,0.06039,87746.0,87745.0,0.0693191]
[1765918494151,0.05939,87746.0,87745.0,0.0693191]
[1765918494752,0.05939,87746.0,87745.0,0.05792]
[1765918495057,0.42019,87746.0,87745.0,0.05792]
[1765918495451,0.05939,87746.0,87745.0,0.05792]
[1765918495747,0.070789,87746.0,87745.0,0.05792]
[1765918496561,0.071789,87746.0,87745.0,0.05792]
[1765918497155,0.072789,87746.0,87745.0,0.05792]
[1765918497856,0.071789,87746.0,87745.0,0.05792]
[1765918499652,0.06039,87746.0,87745.0,0.05792]
[1765918500159,0.06139,87746.0,87745.0,0.05792]
[1765918500357,0.003,87746.0,87745.0,0.05792]
[1765918500560,0.06039,87746.0,87745.0,0.02878]
[1765918500861,0.06039,87746.0,87745.0,0.05792]
[1765918501057,0.02959092,87750.0,87749.0,0.05792]
[1765918501358,0.05856092,87750.0,87749.0,0.0693186]
[1765918501548,0.3608,87774.0,87744.0,0.0113992]
[1765918501549,0.0113962,87768.0,87767.0,0.0113962]
[1765918501752,0.0697862,87768.0,87767.0,0.0693162]
[1765918502051,0.0697867,87764.0,87763.0,0.0401767]
[1765918502254,0.011397,87762.0,87761.0,0.02878]
[1765918502555,0.011397,87762.0,87751.0,0.05792]
[1765918502556,0.0867582,87752.0,87751.0,0.05792]
[1765918502750,0.05839,87749.0,87748.0,0.38958]
[1765918503060,0.05839,87749.0,87748.0,0.41872]
[1765918503767,0.05839,87749.0,87748.0,0.4301187]
[1765918504557,0.06139,87749.0,87748.0,0.4301187]
[1765918504757,0.003,87749.0,87748.0,0.4301187]
[1765918505258,0.05809,87749.0,87748.0,0.4301187]
[1765918505464,0.03043,87749.0,87748.0,0.4301187]
[1765918505758,0.003,87749.0,87748.0,0.4301187]
[1765918505959,0.01156692,87770.0,87769.0,0.067996]
[1765918505960,0.05526092,87770.0,87769.0,0.067996]
[1765918506165,0.08274036,87770.0,87769.0,0.067996]
[1765918506357,0.08274036,87770.0,87769.0,0.428796]
[1765918506358,0.02765036,87770.0,87769.0,0.428796]
[1765918506561,0.00017092,87770.0,87769.0,0.428796]
[1765918506957,0.00227849,87778.0,87777.0,0.067995]
[1765918507264,0.00227849,87778.0,87777.0,0.428795]
[1765918509168,0.00227849,87778.0,87777.0,0.44040236]
[1765918509371,0.00227849,87778.0,87777.0,0.44140236]
[1765918509666,0.00011257,87786.0,87785.0,0.0679939]
[1765918509959,0.00011257,87786.0,87785.0,0.4287939]
[1765918510556,0.05520257,87786.0,87785.0,0.4287939]
[1765918510952,0.05520257,87786.0,87785.0,0.4297939]
[1765918511163,0.05520257,87786.0,87785.0,0.4307939]
[1765918511665,0.02754257,87786.0,87785.0,0.4307939]
[1765918512167,0.00011257,87786.0,87785.0,0.4307939]
[1765918512563,0.06659637,87786.0,87785.0,0.38944]
[1765918512759,0.05520257,87786.0,87785.0,0.02864]
[1765918512958,0.05620257,87786.0,87785.0,0.02764]
[1765918513262,0.05620257,87786.0,87785.0,0.02864]
[1765918513561,0.05620257,87786.0,87785.0,0.001]
[1765918513764,0.0664848,87778.0,87777.0,0.3608]
[1765918514266,0.0664859,87770.0,87769.0,0.3608]
[1765918514769,0.0664869,87762.0,87758.0,0.0113973]
[1765918515262,0.0664869,87762.0,87761.0,0.01156792]
[1765918516068,0.0664869,87762.0,87761.0,0.00017092]
[1765918516366,0.0674869,87762.0,87761.0,0.00017092]
[1765918517666,0.003,87762.0,87761.0,0.05677092]
[1765918518057,0.05809,87762.0,87761.0,0.05677092]
[1765918518259,0.05809,87762.0,87761.0,0.00017092]
[1765918518460,0.05809,87762.0,87761.0,0.02781092]
[1765918518660,0.05809,87762.0,87761.0,0.05677092]
[1765918519569,0.05709,87762.0,87761.0,0.05677092]
[1765918520071,0.05609,87762.0,87761.0,0.05677092]
[1765918520755,0.05509,87762.0,87761.0,0.05677092]
[1765918520960,0.05609,87762.0,87761.0,0.05677092]
[1765918522867,0.05609,87762.0,87761.0,0.02781092]
[1765918523171,0.05609,87762.0,87761.0,0.00017092]
[1765918524971,0.05609,87762.0,87761.0,0.05677092]
[1765918525559,0.05809,87762.0,87761.0,0.05677092]
[1765918525965,0.05709,87762.0,87761.0,0.05677092]
[1765918526165,0.05809,87762.0,87761.0,0.05677092]
[1765918526365,0.05709,87762.0,87761.0,0.05677092]
[1765918526566,0.05609,87762.0,87761.0,0.05677092]
[1765918527073,0.38823,87771.0,87770.0,0.0566]
[1765918527279,0.07282,87784.0,87783.0,0.0566]
[1765918527570,0.10035732,87784.0,87783.0,0.0566]
[1765918528474,0.08262732,87784.0,87783.0,0.0566]
[1765918528864,0.08362732,87784.0,87783.0,0.0566]
[1765918529470,0.00011257,87786.0,87785.0,0.0566]
[1765918529670,0.00011257,87786.0,87785.0,0.4174]
[1765918531668,0.00111257,87786.0,87785.0,0.4174]
[1765918531874,0.02854257,87786.0,87785.0,0.4174]
[1765918532376,0.00111257,87786.0,87785.0,0.4174]
[1765918534079,0.03011257,87786.0,87785.0,0.4174]
[1765918534283,0.00111257,87786.0,87785.0,0.4174]
[1765918534482,0.08739775,87786.0,87785.0,0.4174]
[1765918534778,0.08639775,87786.0,87785.0,0.4174]
[1765918534983,0.08639775,87786.0,87785.0,0.4184]
[1765918535482,0.08639775,87786.0,87785.0,0.4174]
[1765918535684,0.08739775,87786.0,87785.0,0.4174]
[1765918536383,0.08639775,87786.0,87785.0,0.4174]
[1765918536583,0.08739775,87786.0,87785.0,0.4174]
[1765918537680,0.0657959,87773.0,87772.0,0.0684355]
[1765918538272,0.0544,87773.0,87772.0,0.0684355]
[1765918538480,0.02719,87773.0,87772.0,0.0684355]
[1765918538672,0.0657945,87781.0,87780.0,0.0684346]
[1765918538879,0.09334747,87781.0,87780.0,0.0684346]
[1765918539681,0.08195297,87781.0,87780.0,0.0684346]
[1765918540881,0.08295297,87781.0,87780.0,0.0684346]
[1765918541082,0.0544,87769.0,87768.0,0.4292361]
[1765918541676,0.0657954,87774.0,87773.0,0.0684355]
[1765918542789,0.21031935,87780.0,87779.0,0.05704]
[1765918543090,0.08189128,87780.0,87779.0,0.05704]
[1765918543779,0.09328588,87780.0,87779.0,0.05704]
[1765918543980,0.10993588,87780.0,87779.0,0.05704]
[1765918544889,0.11093588,87780.0,87779.0,0.05704]
[1765918545784,0.11193588,87780.0,87779.0,0.05704]
[1765918547777,0.11193588,87780.0,87779.0,0.0684347]
[1765918548887,0.0544,87769.0,87768.0,0.38997]
[1765918549079,0.0544,87769.0,87768.0,0.41784]
[1765918549584,0.0544,87769.0,87768.0,0.4292361]
[1765918549788,0.0544,87769.0,87768.0,0.41784]
[1765918551492,0.0544,87769.0,87768.0,0.41884]
[1765918552384,0.0544,87769.0,87768.0,0.41784]
[1765918553290,0.08191573,87769.0,87768.0,0.41784]
[1765918553880,0.0554,87769.0,87768.0,0.41784]
[1765918554380,0.08291868,87769.0,87768.0,0.41784]
[1765918554782,0.0554,87769.0,87768.0,0.41784]
[1765918556293,0.08192754,87769.0,87768.0,0.41784]
[1765918556493,0.08292754,87769.0,87768.0,0.41784]
[1765918558697,0.05571754,87769.0,87768.0,0.41784]
[1765918559300,0.0554,87769.0,87768.0,0.41784]
[1765918559992,0.08292763,87769.0,87768.0,0.41784]
[1765918560904,0.0824469,87762.0,87761.0,0.00017092]
[1765918561200,0.0544,87753.0,87752.0,0.05704]
[1765918561394,0.08192763,87753.0,87752.0,0.05704]
[1765918563296,0.08292763,87753.0,87752.0,0.05704]
[1765918564196,0.08292763,87753.0,87752.0,0.02917]
[1765918564404,0.0672089,87747.0,87746.0,0.41734]
[1765918565095,0.0385785,87750.0,87749.0,0.05654]
[1765918565288,0.09469975,87750.0,87749.0,0.05654]
[1765918566099,0.0672085,87750.0,87749.0,0.05654]
[1765918566302,0.41661,87760.0,87759.0,0.05654]
[1765918566501,0.0113963,87767.0,87760.0,0.05654]
[1765918567006,0.0280456,87773.0,87760.0,0.05654]
[1765918567304,0.0113957,87772.0,87760.0,0.05654]
[1765918567689,0.0280456,87773.0,87760.0,0.05654]
[1765918567888,0.0113952,87776.0,87760.0,0.05654]
[1765918568095,0.0672048,87779.0,87778.0,0.0392848]
[1765918568407,0.08329418,87779.0,87778.0,0.0679348]
[1765918569099,0.02748418,87779.0,87778.0,0.0679348]
[1765918569296,0.02748418,87779.0,87778.0,0.07941003]
[1765918569501,0.05592257,87787.0,87786.0,0.0679338]
[1765918569695,0.0547553,87787.0,87786.0,0.4287338]
[1765918570298,0.02729257,87787.0,87786.0,0.4287338]
[1765918570490,0.05592257,87787.0,87786.0,0.4287338]
[1765918570890,0.05592257,87787.0,87786.0,0.41734]
[1765918572390,0.05692257,87787.0,87786.0,0.41734]
[1765918573306,0.05792257,87787.0,87786.0,0.41734]
[1765918573696,0.05692257,87787.0,87786.0,0.41734]
[1765918574304,0.00111257,87787.0,87786.0,0.41734]
[1765918576308,0.00011257,87787.0,87786.0,0.41734]
[1765918576608,0.00011257,87787.0,87786.0,0.41934]
[1765918576993,0.00011257,87787.0,87786.0,0.41834]
[1765918579112,0.00011257,87787.0,87786.0,0.41734]
[1765918579800,0.00011257,87787.0,87786.0,0.41834]
[1765918580300,0.05592257,87787.0,87786.0,0.05654]
[1765918581598,0.00011257,87787.0,87786.0,0.05654]
[1765918582512,0.05592257,87787.0,87786.0,0.05654]
[1765918582707,0.05692257,87787.0,87786.0,0.05654]
[1765918584412,0.05581,87785.0,87784.0,0.0400439]
[1765918584616,0.05581,87785.0,87784.0,0.0679339]
[1765918586805,0.05581,87785.0,87784.0,0.05654]
[1765918587515,0.00111257,87787.0,87786.0,0.05654]
[1765918588111,0.05692257,87787.0,87786.0,0.05654]
[1765918588312,0.05592257,87787.0,87786.0,0.05654]
[1765918588711,0.41672257,87787.0,87786.0,0.05654]
[1765918589019,0.44412896,87787.0,87786.0,0.05654]
[1765918589208,0.44512896,87787.0,87786.0,0.05654]
[1765918589608,0.05581,87785.0,87784.0,0.011394]
[1765918589809,0.05581,87785.0,87784.0,0.067934]
[1765918591719,0.05681,87785.0,87784.0,0.067934]
[1765918591924,0.05581,87782.0,87781.0,0.02865]
[1765918592110,0.05581,87782.0,87780.0,0.3608]
[1765918592111,0.0672044,87781.0,87780.0,0.3608]
[1765918592311,0.0672044,87781.0,87780.0,0.38945]
[1765918592520,0.0672044,87781.0,87780.0,0.41734]
[1765918593720,0.05581,87781.0,87780.0,0.41734]
[1765918594513,0.05681,87781.0,87780.0,0.41734]
[1765918595120,0.05681,87781.0,87780.0,0.4287346]
[1765918596214,0.0843109,87781.0,87780.0,0.4287346]
[1765918596614,0.05681,87781.0,87780.0,0.4287346]
[1765918596825,0.09570509,87781.0,87780.0,0.4287346]
[1765918597024,0.001,87781.0,87780.0,0.4438546]
[1765918597220,0.001,87781.0,87780.0,0.4287346]
[1765918597434,0.0290055,87773.0,87772.0,0.41619]
[1765918597615,0.10137107,87773.0,87772.0,0.02713]
[1765918598414,0.10137107,87773.0,87770.0,0.02730092]
[1765918598415,0.05625,87771.0,87770.0,0.02730092]
[1765918598614,0.08376107,87771.0,87770.0,0.05556092]
[1765918600813,0.08476107,87771.0,87770.0,0.05556092]
[1765918601010,0.08576107,87771.0,87770.0,0.05556092]
[1765918601521,0.08476107,87771.0,87770.0,0.05556092]
[1765918601831,0.08576107,87771.0,87770.0,0.05556092]
[1765918602024,0.08476107,87771.0,87770.0,0.05556092]
[1765918602323,0.08676107,87771.0,87770.0,0.02730092]
[1765918603818,0.08476107,87771.0,87770.0,0.02730092]
[1765918604126,0.08676107,87771.0,87770.0,0.02730092]
[1765918604623,0.08476107,87771.0,87770.0,0.00017092]
[1765918604828,0.08576107,87771.0,87770.0,0.00017092]
[1765918605017,0.08676107,87771.0,87770.0,0.00017092]
[1765918605213,0.05856107,87771.0,87760.0,0.0113971]
[1765918605422,0.0676468,87763.0,87762.0,0.41619]
[1765918605622,0.09515787,87763.0,87762.0,0.41619]
[1765918605821,0.09515787,87763.0,87762.0,0.3608]
[1765918606018,0.09515787,87763.0,87745.0,0.37592]
[1765918606019,0.0676478,87755.0,87754.0,0.38793]
[1765918606217,0.0676478,87755.0,87754.0,0.41619]
[1765918606417,0.0676478,87755.0,87754.0,0.05539]
[1765918606719,0.0676487,87748.0,87747.0,0.0667888]
[1765918606919,0.0676487,87748.0,87747.0,0.05539]
[1765918607729,0.05625,87748.0,87747.0,0.05539]
[1765918607928,0.05625,87752.0,87751.0,0.0667883]
[1765918608131,0.07386,87752.0,87751.0,0.0667883]
[1765918608326,0.05625,87750.0,87749.0,0.0113985]
[1765918608526,0.05625,87750.0,87749.0,0.0385285]
[1765918608730,0.05625,87750.0,87749.0,0.02713]
[1765918609120,0.05625,87750.0,87749.0,0.05539]
[1765918611033,0.001,87752.0,87751.0,0.05539]
[1765918611223,0.0676476,87757.0,87756.0,0.0667877]
[1765918611424,0.09518102,87757.0,87756.0,0.0667877]
[1765918612728,0.08378342,87757.0,87756.0,0.0667877]
[1765918612928,0.05625,87757.0,87756.0,0.0667877]
[1765918613331,0.0113975,87758.0,87757.0,0.05539]
[1765918613525,0.0395975,87758.0,87757.0,0.05539]
[1765918613725,0.0676475,87758.0,87757.0,0.05539]
[1765918614435,0.0686475,87758.0,87757.0,0.05539]
[1765918614623,0.0696475,87758.0,87757.0,0.05539]
[1765918615334,0.0686475,87758.0,87757.0,0.05539]
[1765918616425,0.0292,87758.0,87757.0,0.05539]
[1765918616624,0.001,87758.0,87757.0,0.05539]
[1765918617133,0.05642092,87763.0,87762.0,0.0667869]
[1765918617836,0.00017092,87763.0,87762.0,0.0667869]
[1765918618133,0.00017092,87763.0,87762.0,0.4275869]
[1765918619525,0.00117092,87763.0,87762.0,0.4275869]
[1765918620128,0.00117092,87763.0,87762.0,0.4285869]
[1765918620644,0.00017092,87763.0,87762.0,0.4275869]
[1765918621227,0.05642092,87763.0,87762.0,0.4275869]
[1765918621428,0.05642092,87763.0,87762.0,0.41619]
[1765918622832,0.05642092,87763.0,87762.0,0.3608]
[1765918623143,0.05842092,87763.0,87762.0,0.3608]
[1765918623436,0.0676478,87755.0,87754.0,0.05539]
[1765918624531,0.05693,87753.0,87752.0,0.0113981]
[1765918624837,0.05693,87753.0,87752.0,0.0677781]
[1765918625230,0.0683289,87747.0,87746.0,0.00017092]
[1765918625535,0.05693,87747.0,87746.0,0.05655092]
[1765918625839,0.05693,87752.0,87751.0,0.05638]
[1765918626142,0.11381509,87752.0,87751.0,0.05638]
[1765918627237,0.11481509,87752.0,87751.0,0.05638]
[1765918627632,0.08549689,87752.0,87751.0,0.05638]
[1765918627833,0.02856689,87752.0,87751.0,0.05638]
[1765918628143,0.001,87752.0,87751.0,0.05638]
[1765918628933,0.0400876,87757.0,87756.0,0.0677777]
[1765918629134,0.09591033,87757.0,87756.0,0.0677777]
[1765918629335,0.05693,87749.0,87748.0,0.4285787]
[1765918629540,0.05693,87749.0,87748.0,0.05638]
[1765918629737,0.05693,87747.0,87746.0,0.00017092]
[1765918630140,0.08443665,87747.0,87746.0,0.00017092]
[1765918631446,0.08444069,87747.0,87746.0,0.05655092]
[1765918631646,0.08444069,87747.0,87746.0,0.05755092]
[1765918632252,0.0400879,87755.0,87754.0,0.05638]
[1765918632450,0.0675985,87755.0,87754.0,0.067778]
[1765918632854,0.0958385,87755.0,87754.0,0.067778]
[1765918633153,0.0683286,87749.0,87748.0,0.0677787]
[1765918633453,0.0958392,87749.0,87748.0,0.02745]
[1765918634355,0.0958392,87749.0,87748.0,0.05638]
[1765918634763,0.0275106,87749.0,87748.0,0.05638]
[1765918636062,0.0113984,87751.0,87750.0,0.05638]
[1765918636259,0.06760672,87751.0,87750.0,0.05638]
[1765918636464,0.09584672,87751.0,87750.0,0.05638]
[1765918637758,0.0683289,87747.0,87746.0,0.38842092]
[1765918638064,0.09584722,87747.0,87746.0,0.41735092]
[1765918639358,0.09584722,87747.0,87746.0,0.41935092]
[1765918640661,0.08444832,87747.0,87746.0,0.41935092]
[1765918640867,0.02751832,87747.0,87746.0,0.41935092]
[1765918641062,0.0683283,87751.0,87750.0,0.05638]
[1765918641272,0.0958469,87751.0,87750.0,0.05638]
[1765918641570,0.0958469,87751.0,87750.0,0.02745]
[1765918642070,0.0958469,87751.0,87746.0,9.2e-07]
[1765918642071,0.0683289,87747.0,87746.0,9.2e-07]
[1765918642259,0.0683299,87739.0,87738.0,0.00227953]
[1765918642455,0.4566485,87739.0,87738.0,0.00227953]
[1765918642660,0.0683312,87729.0,87720.0,0.3608]
[1765918642968,0.0958498,87729.0,87719.0,0.0114025]
[1765918643171,0.0958498,87729.0,87721.0,0.0114022]
[1765918643358,0.0958498,87729.0,87723.0,0.0114019]
[1765918643671,0.0958498,87729.0,87720.0,0.01157322]
[1765918644163,0.0978498,87729.0,87720.0,0.01157322]
[1765918644364,0.0978498,87729.0,87722.0,0.0114021]
[1765918644871,0.0998498,87729.0,87725.0,0.0114017]
[1765918645166,0.0998498,87729.0,87726.0,0.0114016]
[1765918645361,0.0978498,87729.0,87728.0,0.05650336]
[1765918645560,0.1008498,87729.0,87728.0,0.05650336]
[1765918645762,0.1008498,87729.0,87728.0,0.00012336]
[1765918646362,0.0683322,87721.0,87720.0,0.00017092]
[1765918646966,0.0683322,87721.0,87720.0,0.02762092]
[1765918646967,0.09580757,87721.0,87720.0,0.02762092]
[1765918647166,0.09580757,87721.0,87720.0,0.05655092]
[1765918647357,0.05705336,87721.0,87720.0,0.05655092]
[1765918649067,0.05805336,87721.0,87720.0,0.05655092]
[1765918649463,0.05905336,87721.0,87720.0,0.05655092]
[1765918650168,0.05805336,87721.0,87720.0,0.05655092]
[1765918650366,0.05905336,87721.0,87720.0,0.05655092]
[1765918650677,0.05905336,87721.0,87720.0,0.00017092]
[1765918650864,0.0683334,87712.0,87711.0,0.3608]
[1765918651061,0.0683346,87703.0,87702.0,0.41718]
[1765918652177,0.00017102,87711.0,87710.0,0.05638]
[1765918652465,0.05710102,87711.0,87710.0,0.05638]
[1765918653670,0.05710102,87711.0,87710.0,0.05738]
[1765918654273,0.05710102,87711.0,87710.0,0.05838]
[1765918657880,0.02886102,87711.0,87710.0,0.05838]
[1765918658173,0.05591102,87711.0,87710.0,0.05838]
[1765918659079,0.00017102,87711.0,87710.0,0.05838]
[1765918659376,0.00017102,87711.0,87710.0,0.41918]
[1765918660378,0.00012336,87721.0,87720.0,0.0857824]
[1765918660678,0.00012336,87721.0,87720.0,0.4465824]
[1765918661685,0.00212336,87721.0,87720.0,0.4465824]
[1765918662575,0.00112336,87721.0,87720.0,0.4465824]
[1765918662881,0.00112336,87721.0,87720.0,0.4475824]
[1765918663472,0.00017102,87729.0,87728.0,0.0855113]
[1765918663673,0.00017102,87729.0,87728.0,0.4463113]
[1765918664986,0.05501102,87729.0,87728.0,0.4307013]
[1765918665277,0.00017102,87729.0,87728.0,0.4463113]
[1765918667181,0.00017102,87729.0,87728.0,0.4483113]
[1765918668083,0.00017102,87729.0,87728.0,0.4473113]
[1765918668585,0.00017102,87729.0,87728.0,0.4483113]